﻿Department family,Entity,Date,Expense type,Expense area,Supplier,Transaction number,Amount,Description,Supplier Postcode
Pmu,Pmu,01/08/2022,Drugs,Pmu,Aah Pharmaceuticals Ltd,64593389X,"30,193.66 ",Pharmaceutical Purchase,CV2 2ZG
Pmu,Pmu,01/08/2022,Drugs,Pmu,Aah Pharmaceuticals Ltd,65436095M,"25,345.44 ",Pharmaceutical Purchase,CV2 2ZG
CHS Estates,L2 Estates,26/08/2022,Other Clinical Costs,Management Estates,Agfa Finance,DEIN/22080003,"144,073.80 ",Year 4 of 10 (28 April 2022 - 27 April 2023) PACS system. Managed Service Contract. Yorkshire Imaging Collaborative.  Payment terms: quatery in advnace.,TW8 9TH
Balance Sheet,L2 Current Assets,05/08/2022,Finished Processed Goods,Stock & Work In Progress,Alliance Healthcare Distribution Ltd,F27554733,"68,215.68 ",Pharmaceutical Purchase,KT9 1SN
Balance Sheet,L2 Current Assets,12/08/2022,Finished Processed Goods,Stock & Work In Progress,Alliance Healthcare Distribution Ltd,F27C53207,"52,661.76 ",Pharmaceutical Purchase,KT9 1SN
Balance Sheet,L2 Current Assets,19/08/2022,Finished Processed Goods,Stock & Work In Progress,Alliance Healthcare Distribution Ltd,F27J50741,"54,535.68 ",Pharmaceutical Purchase,KT9 1SN
Balance Sheet,L2 Current Assets,26/08/2022,Finished Processed Goods,Stock & Work In Progress,Alliance Healthcare Distribution Ltd,F27R54671,"57,083.58 ",Pharmaceutical Purchase,KT9 1SN
Balance Sheet,L2 Current Assets,17/08/2022,Finished Processed Goods,Stock & Work In Progress,Alloga Uk Ltd,SIN103525105,"27,000.00 ",Pharmaceutical Purchase,DE55 2FH
CHS Estates,L2 Estates,24/08/2022,Contract : Other External,Medical Physics,B Braun Sterilog (Yorkshire) Ltd,328746763,"167,935.55 ",DECONTAMINATION SERVICES FOR SURGICAL & PODIATRY,S35 2PW
Balance Sheet,L2 Current Assets,05/08/2022,Finished Processed Goods,Stock & Work In Progress,Bayer Plc,824C429254,"114,057.00 ",Pharmaceutical Purchase,RG2 6AD
Balance Sheet,L2 Current Assets,12/08/2022,Finished Processed Goods,Stock & Work In Progress,Bayer Plc,824C429671,"27,373.68 ",Pharmaceutical Purchase,RG2 6AD
Balance Sheet,L2 Current Assets,19/08/2022,Finished Processed Goods,Stock & Work In Progress,Bayer Plc,824C432325,"27,373.68 ",Pharmaceutical Purchase,RG2 6AD
Balance Sheet,L2 Current Assets,26/08/2022,Finished Processed Goods,Stock & Work In Progress,Bayer Plc,824C433473,"27,373.68 ",Pharmaceutical Purchase,RG2 6AD
Balance Sheet,L2 Current Assets,26/08/2022,Finished Processed Goods,Stock & Work In Progress,Bayer Plc,824C434205,"114,057.00 ",Pharmaceutical Purchase,RG2 6AD
Surgery & Anaesthetics,Surgical Divisional Support,10/08/2022,Contractual Clinical Services,Independent Sector,Bmi Healthcare Ltd,S5712APR22,"113,703.52 ",Provision of Elective Activity on behalf of CHFT,SK3 0XN
Surgery & Anaesthetics,Surgical Divisional Support,01/08/2022,Contractual Clinical Services,Independent Sector,Bmi Healthcare Ltd,S5712MAR22,"87,497.16 ",Provision of Elective Activity on behalf of CHFT,SK3 0XN
Surgery & Anaesthetics,Surgical Divisional Support,17/08/2022,Contractual Clinical Services,Independent Sector,Bmi Healthcare Ltd,S5712MAY22,"107,916.06 ",Provision of Elective Activity on behalf of CHFT,SK3 0XN
CHS Facilities,L2 Facilities,10/08/2022,Vehicle Insurance,Transport,Brian Johnston & Co (Insurance Brokers) Ltd,608945/468925,"25,039.00 ",Vehicle Insurance costs for lease vehicles  year 1 of 3 year,RH1 1BL
Surgery & Anaesthetics,Surgical Divisional Support,01/08/2022,Healthcare From Independent Sector,Elective Recovery,Calderdale And Huddersfield Orthopaedic Partnership Llp,2022-38,"196,178.19 ",Provision of Orthopaedic and/or Specialty Healthcare Services,LS8 2JH
Surgery & Anaesthetics,Surgical Divisional Support,01/08/2022,Healthcare From Independent Sector,Elective Recovery,Calderdale And Huddersfield Orthopaedic Partnership Llp,2022-42,"120,796.08 ",Provision of Orthopaedic and/or Specialty Healthcare Services,LS8 2JH
Surgery & Anaesthetics,Surgical Divisional Support,01/08/2022,Healthcare From Independent Sector,Elective Recovery,Calderdale And Huddersfield Orthopaedic Partnership Llp,CN-0044,"-53,674.44 ",Provision of Orthopaedic and/or Specialty Healthcare Services,LS8 2JH
Corporate Services,Service Performance,03/08/2022,Income Generation Schemes,Pfi,Calderdale Hospital Spc Ltd,3661,"222,746.75 ",Car Parking income For the year ended 31 March 2022,M20 2YY
Corporate Services,Service Performance,19/08/2022,Contract : Other External,Pfi,Calderdale Hospital Spc Ltd,3670,"3,048,419.56 ",PFI contract monthly payment,M20 2YY
Corporate Services,Service Performance,12/08/2022,External Contracts : Other Hotel Services,Pfi,Calderdale Hospital Spc Ltd,3671,"27,313.20 ",Additional variations,M20 2YY
Corporate Services,Service Performance,12/08/2022,Minor Works,Pfi,Calderdale Hospital Spc Ltd,3674,"242,814.84 ",New Works Instructions,M20 2YY
Corporate Services,Service Performance,12/08/2022,Minor Works,Pfi,Calderdale Hospital Spc Ltd,3675,"50,647.72 ",Calderdale LED lighting Project,M20 2YY
Corporate Services,Service Performance,12/08/2022,Minor Works,Pfi,Calderdale Hospital Spc Ltd,3676,"90,601.80 ",Calderdale LED lighting Project,M20 2YY
Corporate Services,Service Performance,26/08/2022,Rates,Properties,Calderdale Metropolitan Borough Council,25202291017616,"73,387.00 ",Business rates for Calderdale Royal Hospital,HX1 1TP
Corporate Services,Corporate Services,05/08/2022,Professional Fees,Corporate Services,Care Quality Commission,43126754,"30,805.40 ",Annual Fee in 10 installments 30 805.40 each,WF3 1WE
CHS Estates,L2 Estates,26/08/2022,Med Surg Eqpt Mtce Contracts,Management Estates,Carl Zeiss Ltd,5140583304,"32,429.88 ",2YR Complete Maintenance for Lumera 700  Lumera 700 OCT Ceiling  Vario 700  Callisto Eye. 2YR Prevent Maintenance for Colposcope 150 x2  OPMI Pico x2  IOLMaster XP  S100 Floor Stand.  Pro-Rata Complete Maintenance to start after Warranty ends of x2 Opmi Pico S100. Pro-Rata Complete Maintenance to start after contract end of IOLMaster 700,CB23 6DW
Health Informatics,Modernisation Programme,01/08/2022,Computer Software / License  Fees,Modernisation Programme,Cerner Ltd,102097501,"63,112.80 ",Cerner - Table 12: RHO Recurring Charges. Monthly  commencing from the Effective Date and continuing until the end of the Term £52 594 per month x 12 for 2022,W2 1AF
Health Informatics,Modernisation Programme,01/08/2022,Computer Software / License  Fees,Modernisation Programme,Cerner Ltd,102097589,"38,400.00 ",Cerner CCN053 Nuance Dragon Medical Once Speech recognition. monthly recurring charge £32 000. x 12 for 2022. to link to order rwyf400053037,W2 1AF
Health Informatics,Modernisation Programme,26/08/2022,Computer Software / License  Fees,Modernisation Programme,Cerner Ltd,102109042,"63,112.80 ",Cerner - Table 12: RHO Recurring Charges. Monthly  commencing from the Effective Date and continuing until the end of the Term £52 594 per month x 12 for 2022,W2 1AF
Health Informatics,Modernisation Programme,26/08/2022,Computer Software / License  Fees,Modernisation Programme,Cerner Ltd,102109126,"38,400.00 ",Cerner CCN053 Nuance Dragon Medical Once Speech recognition. monthly recurring charge £32 000. x 12 for 2022. to link to order rwyf400053037,W2 1AF
Central & Technical,Tech Accounting,17/08/2022,Laboratory Test Kits,Tech Accounting,Chrystal Consulting Ltd,61056,"136,671.56 ",QIAGEN COVID TESTING BETWEEN SEP 2021-FEB 2022 VIA CHRYSTAL Managed Service Contract.,M22 5HQ
Families & Specialist Services,Pathology,05/08/2022,Laboratory Reagents,Path General,Chrystal Consulting Ltd,61074,"66,483.23 ",Transition Period of old Managed Service Contract until new Year 1 of 5 Chrystal Managed Service Contract for the Werfen Blood Gas analysers and Chen stats starts.,M22 5HQ
Families & Specialist Services,Pathology,19/08/2022,Laboratory Test Kits,Microbiology,Chrystal Consulting Ltd,61093,"142,822.36 ",Chrystal Diasorin Managed Service Contract ,M22 5HQ
Balance Sheet,Fixed Assets,05/08/2022,Additions - Assets Under Construction,Capital (His),Clinical Network Systems Limited,INV-0052,"96,000.00 ",5 year deal to license Pacenet (complete electronic management system for all implanted cardiac devices),W1K 4QR
Health Informatics,Corporate And Operations,01/08/2022,Computer Maintenance,It Support,Clinisys Solutions Ltd,INV34212200022,"115,119.97 ",Clinisys ICE Annual Support and Maintenance Renewal 31/10/21 - 30/10/22,KT16 9AU
CHS Estates,L2 Estates,12/08/2022,Electricity,Estates Operations,EDF Energy Customers Ltd,000012579041,"266,200.89 ",Mains Electric for Calderdale Royal Hospital,W1T 4EZ
CHS Facilities,L2 Facilities,01/08/2022,External Contracts : Laundry,Laundry,Elis UK Ltd,SN3495552,"96,323.45 ",Contracted Laundry Services,RG24 8NE
CHS Facilities,L2 Facilities,26/08/2022,External Contracts : Laundry,Laundry,Elis UK Ltd,SN3497997,"112,602.68 ",Contracted Laundry Services,RG24 8NE
Health Informatics,Modernisation Programme,05/08/2022,Computer Maintenance,Modernisation Programme,Healthcare Gateway Ltd,INV-1016,"26,309.30",MIG contract  2022As per att.quote OU-922 dated 7 June 2022MIG Detailed Care Record forNHS Greater Huddersfield CCG for 243 000 Patients  Invoice Period:28.06.2022 to 27.06.2023,LS19 7BY
Health Informatics,Modernisation Programme,05/08/2022,Computer Maintenance,Modernisation Programme,Healthcare Gateway Ltd,INV-1016,"23,332.58",MIG Detailed Care Record forNHS Calderdale CCG for 213 000 Patients,LS19 7BY
Health Informatics,Modernisation Programme,05/08/2022,Computer Maintenance,Modernisation Programme,Healthcare Gateway Ltd,INV-1016,"5,691.49",Annual service charge:MIG GP Specialist Dataset Service(Supportive Care HGLEIS36) for up to213 000 Patient Population at NHSCalderdale CCG,LS19 7BY
Health Informatics,Modernisation Programme,05/08/2022,Computer Maintenance,Modernisation Programme,Healthcare Gateway Ltd,INV-1016,"6,430.25",Annual service charge:MIG GP Specialist Dataset Service(Supportive Care HGLEIS36) for up to243 000 Patient Population at NHS GreaterHuddersfield CCG,LS19 7BY
Health Informatics,Modernisation Programme,05/08/2022,Computer Maintenance,Modernisation Programme,Healthcare Gateway Ltd,INV-1016,"25,300.00",Annual service chargeMIG CIS Social Care Dataset,LS19 7BY
Medical Division,Emergency Medicine,24/08/2022,B5 Agency Nursing,A&E Nursing,Icare24 Ltd,INV27780A,3207.47,B5 Agency Nursing,B16 8QG
Corporate Services,Central Operations Team CORP,24/08/2022,B5 Agency Nursing,Central Operations Team CORP,Icare24 Ltd,INV27780A,1706.72,B5 Agency Nursing,B16 8QG
Medical Division,Acute Medical,24/08/2022,B5 Agency Nursing,General Medicine,Icare24 Ltd,INV27780A,3843.4,B5 Agency Nursing,B16 8QG
Surgery & Anaesthetics,General Surgery,24/08/2022,B5 Agency Nursing,General Surgery,Icare24 Ltd,INV27780A,1663.69,B5 Agency Nursing,B16 8QG
Medical Division,Acute Medical,24/08/2022,B5 Agency Nursing,Geriatric Medicine,Icare24 Ltd,INV27780A,6213.55,B5 Agency Nursing,B16 8QG
Surgery & Anaesthetics,Operating Services,24/08/2022,B5 Agency Nursing,Operating Services,Icare24 Ltd,INV27780A,1253.78,B5 Agency Nursing,B16 8QG
Medical Division,Medical Specialities,24/08/2022,B5 Agency Nursing,Respiratory,Icare24 Ltd,INV27780A,1631.52,B5 Agency Nursing,B16 8QG
Surgery & Anaesthetics,Orthopaedics,24/08/2022,B5 Agency Nursing,Trauma & Orthopaedics,Icare24 Ltd,INV27780A,1725.23,B5 Agency Nursing,B16 8QG
Health Informatics,Information,01/08/2022,Computer Software / License  Fees,Business Intelligence,Insight Direct (Uk) Ltd,2100273073,"225,632.16 ",Annual Software Licence and Support Agreement (ASLSA)in respect of 3M Medicode 360 version 1.x OI9.4 (SNOMED CT) Inpatient Terminology Encoder with cross maps to ICD10/OPCS - 6100001861. Year 1 of 5,M5 3NN
Balance Sheet,Fixed Assets,24/08/2022,Additions - Assets Under Construction,CAPITAL (Reconfig HRI),Integrated Health Projects,22080014,"715,692.36 ",Emergency Department - STAGE 3 & 4 GMP SUBMISSION FOR THE DELIVERY OF A NEW ACCIDENT AND EMERGENCY BUILD AT THE HUDDERSFIELD ROYAL INFIRMARY ,WD24 4WW
Estates & Facilities,Estates,05/08/2022,Rates,Estates Operations,Kirklees Council,969286425_2022,"43,093.00 ",business rates for Huddersfield Royal Infirmary,HD1 2NF
Families & Specialist Services,Pharmacy,17/08/2022,Healthcare From Commercial Sector,Pharm Gen,L Rowland & Company (Retail) Ltd,1800000854,"95,044.66",Rowlands Outpatient Pharmacy contract DISPENSING FEE,WA7 3DJ
Families & Specialist Services,Pharmacy,17/08/2022,Healthcare From Commercial Sector,Pharm Gen,L Rowland & Company (Retail) Ltd,1800000854,"723,495.16 ",Rowlands Outpatient Pharmacy Contract. medicines costs,WA7 3DJ
Community Division,Community Therapies,12/08/2022,B4 Other Staff,Sit Team,Locala Community Partnerships C.I.C.,A0013467,"40,741.20 ",Vascular Pathway - Podiatrist ( wound care ) Band 6 for the period Apr21-Mar22 FAO Michael.Folan@cht.nhs.uk For invoice queries  please contact accounts.receivable@locala.org.uk,WF17 5PW
Medical Division,Medical Specialities,05/08/2022,Pacemakers,Cardiology,Medtronic Ltd,1205064748,"42,840.00 ",W4TR04 Percepta CRTP system. W4TR06 Solara CRTP system,WD18 8WW
Recharges,Recharges,26/08/2022,Healthcare From NHS Trusts,Recharges,Mid Yorkshire Hospitals NHS Trust,1600020713,"52,918.00 ",Various services provided by agreement as per West Yorkshire Association of Acute Trusts agreed methodology,WF1 4DG
Recharges,Recharges,26/08/2022,Healthcare From NHS Trusts,Recharges,Mid Yorkshire Hospitals NHS Trust,1600020715,"52,918.00 ",Various services provided by agreement as per West Yorkshire Association of Acute Trusts agreed methodology,WF1 4DG
Recharges,Recharges,26/08/2022,Healthcare From NHS Trusts,Recharges,Mid Yorkshire Hospitals NHS Trust,1600020717,"52,918.00 ",Various services provided by agreement as per West Yorkshire Association of Acute Trusts agreed methodology,WF1 4DG
Recharges,Recharges,26/08/2022,Healthcare From NHS Trusts,Recharges,Mid Yorkshire Hospitals NHS Trust,1600020719,"52,918.00 ",Various services provided by agreement as per West Yorkshire Association of Acute Trusts agreed methodology,WF1 4DG
Families & Specialist Services,Pathology,15/08/2022,Blood Products,Blood Sciences,NHS Blood And Transplant,7006910,"85,109.73 ",MONTHLY CONTRACT CHARGE BLOOD & COMPONENTS,LS15 7TW
Families & Specialist Services,Pathology,15/08/2022,Blood Products,Blood Sciences,NHS Blood And Transplant,7006911,"32,812.05 ",MONTHLY CONTRACT CHARGE BLOOD & COMPONENTS,LS15 7TW
Corporate Services,Service Performance,05/08/2022,Contract : Other External,Properties,NHS Property Services Ltd,H577376,"32,357.54 ",Brighouse Health Centre Brighouse Health Centre - Tenant Rent & Rates Charge CHFT,EC2V 7NG
Balance Sheet,L2 Long Term Creditors,24/08/2022,Lease Liabilities under IFRS 16 > 1 year,Finance Leases,NHS Property Services Ltd,H577379,"40,742.45 ",Todmorden Health Centre Todmorden Health Centre Tenant Rent & Management Fee,EC2V 7NG
Corporate Services,Service Performance,05/08/2022,Contract : Other External,Properties,NHS Property Services Ltd,H578855,"32,900.30 ",Brighouse Health Centre Brighouse Health Centre - Tenant Rent & Service Charge CHFT,EC2V 7NG
Corporate Services,Service Performance,05/08/2022,Contract : Other External,Properties,NHS Property Services Ltd,H578858,"36,341.53 ",Todmorden Health Centre Todmorden Health Centre Tenant Service Charge & Additional Sums,EC2V 7NG
Corporate Services,Quality,15/08/2022,Clinical Negligence,Quality,NHS Resolution,SICX409637,"791,186.30 ",Clinical Negligence provision,SW1W 9SZ
Families & Specialist Services,Womens,15/08/2022,Clinical Negligence,Womens Management,NHS Resolution,SICX409637,"857,768.00 ",Clinical Negligence provision,SW1W 9SZ
Corporate Services,Quality,15/08/2022,Insurance Costs,Quality,NHS Resolution,SICX409637,"20,850.40 ",Clinical Negligence provision,SW1W 9SZ
Balance Sheet,L2 Current Liabilities,12/08/2022,Non- NHS  Trade Creditors < One Year,Other Creditors,NHS Supply Chain,1123075153,"310,536.84 ",NHS Product Sales week ending 08/07/22,DE55 4QJ
Balance Sheet,L2 Current Liabilities,12/08/2022,Non- NHS  Trade Creditors < One Year,Other Creditors,NHS Supply Chain,1123081145,"395,863.55 ",Goods delivered week ending 15/07/2022,DE55 4QJ
CHS Balance Sheet,Current Liabilities,19/08/2022,Non- NHS  Trade Creditors < One Year,Other Creditors,NHS Supply Chain,1123085238,"225,313.49 ",Goods delivered week ending 22/07/2022,DE55 4QJ
Balance Sheet,L2 Current Liabilities,26/08/2022,Non- NHS  Trade Creditors < One Year,Other Creditors,NHS Supply Chain,1123090960,"403,115.00 ",NHS Product Sales week ending 29/07/22,DE55 4QJ
Balance Sheet,Fixed Assets,12/08/2022,Additions - Assets Under Construction,Capital (Surgical),NHS Supply Chain,9523000254,"36,135.74 ",Ultrasound Venue GO System,DE55 4QJ
Balance Sheet,Fixed Assets,12/08/2022,Additions - Assets Under Construction,Capital (Surgical),NHS Supply Chain,9523000319,"38,183.76 ",Vascular Venue Fit Ultrasoundas per quotation  ,DE55 4QJ
CHS Estates,L2 Estates,19/08/2022,Engineering  Contracts,Estates Operations,NHS Supply Chain - Maintenance,2123002942,"174,763.37 ",Comprehensive service and validation to all Cantel assets within CHFT as per quote,DE55 4QJ
CHS Estates,L2 Estates,19/08/2022,Med Surg Eqpt Mtce Contracts,Maintenance & Leases,NHS Supply Chain - Maintenance,2192300467,"-50,088.79 ",Maintenance of Endoscopes & electro-medical equipment.,DE55 4QJ
Corporate Services,Finance,26/08/2022,Computer Software / License  Fees,Finance,Northumbria Healthcare NHS Foundation Trust,7550002181,"226,866.00 ",Financial software system charges,NE27 0QJ
Balance Sheet,L2 Current Assets,05/08/2022,Finished Processed Goods,Stock & Work In Progress,Novartis Pharmaceuticals Uk Ltd,92633940,"42,739.20 ",Pharmaceutical Purchase,GU16 7SR
Balance Sheet,L2 Current Assets,24/08/2022,Finished Processed Goods,Stock & Work In Progress,Novartis Pharmaceuticals Uk Ltd,92641577,"42,739.20 ",Pharmaceutical Purchase,GU16 7SR
Surgery & Anaesthetics,Surgical Divisional Support,12/08/2022,Healthcare From Commercial Sector,Support Services,Omnes Healthcare Ltd,CALJUN22,"67,702.57 ",Omnes Insouring Outpatient Capacity - ENT,SE22 8EY
Surgery & Anaesthetics,Surgical Divisional Support,05/08/2022,Healthcare From Commercial Sector,Support Services,Omnes Healthcare Ltd,CALMAY22,"43,125.15 ",Omnes Insouring Outpatient Capacity - ENT,SE22 8EY
Balance Sheet,Fixed Assets,17/08/2022,Additions - Assets Under Construction,Capital (His),Omnicell Ltd,0000009128,"64,470.00 ",OMNICELL XT - HRI RESUS  CRH RESUS OMNICELL TWO CELL XT CABINET,M44 5GR
CHS Estates,L2 Estates,03/08/2022,Electricity,Estates Operations,Opus Energy Ltd,41947790,"-101,615.58 ",Mains electricity HRI,"YO8 8PH	"
CHS Estates,L2 Estates,03/08/2022,Electricity,Estates Operations,Opus Energy Ltd,41947791,"-98,390.76 ",Mains electricity HRI,"YO8 8PH	"
CHS Estates,L2 Estates,03/08/2022,Electricity,Estates Operations,Opus Energy Ltd,41947792,"-107,261.44 ",Mains electricity HRI,"YO8 8PH	"
CHS Estates,L2 Estates,03/08/2022,Electricity,Estates Operations,Opus Energy Ltd,41947793,"-98,808.97 ",Mains electricity HRI,"YO8 8PH	"
CHS Estates,L2 Estates,03/08/2022,Electricity,Estates Operations,Opus Energy Ltd,41947825,"407,087.88 ",Mains electricity HRI,"YO8 8PH	"
Corporate Services,Service Performance,24/08/2022,Contract : Other External,Properties,Pennine Property Partnership Llp,31899,"42,402.50 ",Service charge 01/11/2019 - 30/11/2019,S11 9PD
Corporate Services,Service Performance,24/08/2022,Contract : Other External,Properties,Pennine Property Partnership Llp,33913CR,"-49,270.80 ",Service charge 01/01/2020 - 31/01/2020,S11 9PD
Corporate Services,Service Performance,24/08/2022,Contract : Other External,Properties,Pennine Property Partnership Llp,SI0000020,"48,516.60 ",Service Charge July 2022 98.3%,S11 9PD
Balance Sheet,L2 Current Assets,26/08/2022,Other Debtors < One Year,Other Debtors,Philips Electronics Uk Ltd,7300393664,"50,999.00 ",Ambient Experience including RF Shielding Screen for MRI at CRH. ,GU2 8XG
Pmu,Pmu,19/08/2022,Contract : Other External,Pmu,Pilz Ltd,HPS.2022.06,"59,833.58 ",POV03W : 50% share of gross margin Povidone/iodine product ( June receipts ),S75 3SP
Pmu,Pmu,26/08/2022,Contract : Other External,Pmu,Pilz Ltd,HPS.2022.07,"68,231.28 ",POV03W : 50% share of gross margin Povidone/iodine product ( July receipts ),S75 3SP
Surgery & Anaesthetics,Surgical Divisional Support,19/08/2022,Healthcare From Commercial Sector,Support Services,Pioneer Healthcare Ltd,3667,"67,004.78 ",Insourcing Services,S10 5UB
Surgery & Anaesthetics,Surgical Divisional Support,19/08/2022,Healthcare From Commercial Sector,Support Services,Pioneer Healthcare Ltd,3685,"56,370.45 ",Insourcing Services,S10 5UB
Surgery & Anaesthetics,Surgical Divisional Support,19/08/2022,Healthcare From Commercial Sector,Support Services,Pioneer Healthcare Ltd,3708,"34,847.00 ",Insourcing Services,S10 5UB
Surgery & Anaesthetics,Surgical Divisional Support,19/08/2022,Healthcare From Commercial Sector,Support Services,Pioneer Healthcare Ltd,3709,"59,720.00 ",Insourcing Services,S10 5UB
Balance Sheet,Fixed Assets,10/08/2022,Additions - Assets Under Construction,Capital (Estates),Protec Fire Detection Plc,SP001517-1,"125,601.47 ",EMERGENCY LIGHTING - SUPPLY AND INSTALLATION OF EMERGECY LIGHTING AS PER YOUR QUOTE  (DAY SURGERY  THEATRE & PENTHOUSE) PART OF PANEL 4 RE,BB9 6RT
Balance Sheet,L2 Current Assets,19/08/2022,Finished Processed Goods,Stock & Work In Progress,Qualasept Ltd,SQS0149326,"28,350.00 ",Pharmaceutical Purchase,SN13 9RG
Medical Division,Emergency Medicine,03/08/2022,B5 Agency Nursing,A&E Nursing,Red Group Personnel Ltd,926CALD,10747.43,B5 Agency Nursing,HA3 5AB
Medical Division,Medical Specialities,03/08/2022,B5 Agency Nursing,Cardiology,Red Group Personnel Ltd,926CALD,925.37,B5 Agency Nursing,HA3 5AB
Corporate Services,Central Operations Team CORP,03/08/2022,B5 Agency Nursing,Central Operations Team CORP,Red Group Personnel Ltd,926CALD,909.54,B5 Agency Nursing,HA3 5AB
Surgery & Anaesthetics,General Surgery,03/08/2022,B5 Agency Nursing,Endoscopy,Red Group Personnel Ltd,926CALD,454.77,B5 Agency Nursing,HA3 5AB
Medical Division,Medical Specialities,03/08/2022,B5 Agency Nursing,Gastroenterology,Red Group Personnel Ltd,926CALD,2975.8,B5 Agency Nursing,HA3 5AB
Medical Division,Acute Medical,03/08/2022,B5 Agency Nursing,General Medicine,Red Group Personnel Ltd,926CALD,5026.94,B5 Agency Nursing,HA3 5AB
Surgery & Anaesthetics,General Surgery,03/08/2022,B5 Agency Nursing,General Surgery,Red Group Personnel Ltd,926CALD,621.97,B5 Agency Nursing,HA3 5AB
Medical Division,Acute Medical,03/08/2022,B5 Agency Nursing,Geriatric Medicine,Red Group Personnel Ltd,926CALD,6869.72,B5 Agency Nursing,HA3 5AB
Families & Specialist Services,Womens,03/08/2022,B5 Agency Nursing,Gynaecology,Red Group Personnel Ltd,926CALD,672.98,B5 Agency Nursing,HA3 5AB
Medical Division,Integrated Medical Specialities,03/08/2022,B5 Agency Nursing,Ims Stroke / Rehabilitation,Red Group Personnel Ltd,926CALD,1196.05,B5 Agency Nursing,HA3 5AB
Families & Specialist Services,Childrens,03/08/2022,B5 Agency Nursing,Inpatients Paediatrics,Red Group Personnel Ltd,926CALD,672.98,B5 Agency Nursing,HA3 5AB
Surgery & Anaesthetics,Operating Services,03/08/2022,B5 Agency Nursing,Operating Services,Red Group Personnel Ltd,926CALD,4769.38,B5 Agency Nursing,HA3 5AB
Medical Division,Medical Specialities,03/08/2022,B5 Agency Nursing,Respiratory,Red Group Personnel Ltd,926CALD,5017.45,B5 Agency Nursing,HA3 5AB
Surgery & Anaesthetics,Orthopaedics,03/08/2022,B5 Agency Nursing,Trauma & Orthopaedics,Red Group Personnel Ltd,926CALD,606.01,B5 Agency Nursing,HA3 5AB
Medical Division,Emergency Medicine,05/08/2022,B5 Agency Nursing,A&E Nursing,Red Group Personnel Ltd,927CALD,9922.29,B5 Agency Nursing,HA3 5AB
Medical Division,Medical Specialities,05/08/2022,B5 Agency Nursing,Cardiology,Red Group Personnel Ltd,927CALD,306.96,B5 Agency Nursing,HA3 5AB
Corporate Services,Central Operations Team CORP,05/08/2022,B5 Agency Nursing,Central Operations Team CORP,Red Group Personnel Ltd,927CALD,727.03,B5 Agency Nursing,HA3 5AB
Medical Division,Medical Specialities,05/08/2022,B5 Agency Nursing,Gastroenterology,Red Group Personnel Ltd,927CALD,2835.89,B5 Agency Nursing,HA3 5AB
Medical Division,Acute Medical,05/08/2022,B5 Agency Nursing,General Medicine,Red Group Personnel Ltd,927CALD,7689.93,B5 Agency Nursing,HA3 5AB
Surgery & Anaesthetics,General Surgery,05/08/2022,B5 Agency Nursing,General Surgery,Red Group Personnel Ltd,927CALD,550.51,B5 Agency Nursing,HA3 5AB
Medical Division,Acute Medical,05/08/2022,B5 Agency Nursing,Geriatric Medicine,Red Group Personnel Ltd,927CALD,3988.24,B5 Agency Nursing,HA3 5AB
Medical Division,Integrated Medical Specialities,05/08/2022,B5 Agency Nursing,Ims Stroke / Rehabilitation,Red Group Personnel Ltd,927CALD,1858.14,B5 Agency Nursing,HA3 5AB
Medical Division,Integrated Medical Specialities,05/08/2022,B5 Agency Nursing,Medical Oncology,Red Group Personnel Ltd,927CALD,1603.19,B5 Agency Nursing,HA3 5AB
Surgery & Anaesthetics,Operating Services,05/08/2022,B5 Agency Nursing,Operating Services,Red Group Personnel Ltd,927CALD,3955.52,B5 Agency Nursing,HA3 5AB
Medical Division,Medical Specialities,05/08/2022,B5 Agency Nursing,Respiratory,Red Group Personnel Ltd,927CALD,3757.69,B5 Agency Nursing,HA3 5AB
Surgery & Anaesthetics,Orthopaedics,05/08/2022,B5 Agency Nursing,Trauma & Orthopaedics,Red Group Personnel Ltd,927CALD,666.96,B5 Agency Nursing,HA3 5AB
Surgery & Anaesthetics,General Surgery,24/08/2022,Healthcare From Commercial Sector,Endoscopy,Remedy Healthcare Solutions Ltd,CHT020,"27,180.00 ",Contract Extension to 31 January 2022 to facilitate Weekend Capacity ,TN22 1QG
Surgery & Anaesthetics,General Surgery,24/08/2022,Healthcare From Commercial Sector,Endoscopy,Remedy Healthcare Solutions Ltd,CHT020,"27,180.00 ",Consultant sessions procured to the 31st January 22All Day sessions @ £2100 per all day ,TN22 1QG
Balance Sheet,L2 Current Assets,26/08/2022,Finished Processed Goods,Stock & Work In Progress,Roche Products Ltd,1322245094,"27,647.82 ",Pharmaceutical Purchase,AL7 1TW
Balance Sheet,L2 Current Assets,26/08/2022,Finished Processed Goods,Stock & Work In Progress,Roche Products Ltd,1322247530,"55,985.04 ",Pharmaceutical Purchase,AL7 1TW
CHS Estates,L2 Estates,10/08/2022,Water,Estates Operations,Scottish Water Business Stream Ltd,1000811-2022-07,"64,182.09 ",Business Stream water invoice Feb-May 2022 CRH,EH12 9DH
CHS Estates,L2 Estates,24/08/2022,Water,Estates Operations,Scottish Water Business Stream Ltd,1225270,"61,852.27 ",Business stream invoice for mains water HRI march to june 2022. ,EH12 9DH
Families & Specialist Services,Radiology,03/08/2022,Med Surg Eqpt Leasing,Mri,Sg Radiology & Associates Ltd,SI-2712,"39,600.00 ",lease of two SG mobile MRI units for CRH. June 22,WF1 3QQ
Families & Specialist Services,Radiology,03/08/2022,Med Surg Eqpt Leasing,Mri,Sg Radiology & Associates Ltd,SI-2738,"29,040.00 ",lease of two SG mobile MRI units for CRH. June 22,WF1 3QQ
Families & Specialist Services,Radiology,03/08/2022,Med Surg Eqpt Leasing,Mri,Sg Radiology & Associates Ltd,SI-2739,"29,040.00 ",lease of two SG mobile MRI units for CRH. June 22,WF1 3QQ
Families & Specialist Services,Pathology,03/08/2022,Laboratory Chemicals,Path Chemical Pathology,Siemens Healthcare Diagnostics Ltd,114673213,"156,629.44 ",CHFT Biochemistry - Laboratory Managed Sevice contract,GU16 8QD
Balance Sheet,Fixed Assets,10/08/2022,Additions - Assets Under Construction,Capital (His),Softcat Plc,INVUK432598,"265,356.00 ",FRM00077497 V2 - Lenovo BOM Cost,SL7 1TB
Balance Sheet,Fixed Assets,24/08/2022,Additions - Assets Under Construction,Capital (His),Softcat Plc,INVUK489262,"34,560.00 ",FRM00077497 V2 - Lenovo BOM Cost,SL7 1TB
Health Informatics,Service Delivery,12/08/2022,Computer Hardware Purchases,Service Delivery,Softcat Plc,INVUK490970,"89,656.56 ","Lenovo 4Y41B69384 Smartcard Keyboard Lenovo ThinkCentre M70q. Lenovo ThinkCentre Tiny in One. Display diagonal: 54.6 cm (21.5"") ",SL7 1TB
Surgery & Anaesthetics,Surgical Divisional Support,03/08/2022,Contractual Clinical Services,Independent Sector,Spire Healthcare Ltd,RWYELDICF2122M12,"90,728.99 ",Provision of Elective Activity on behalf of CHFT ,RG1 9PL
Surgery & Anaesthetics,Surgical Divisional Support,19/08/2022,Contractual Clinical Services,Independent Sector,Spire Healthcare Ltd,RWYELDICF2223M02,"53,953.39 ",Provision of Elective Activity on behalf of CHFT ,RG1 9PL
CHS Estates,L2 Estates,26/08/2022,Clinical Waste,Estates Operations,Srcl Ltd,0001735960,"12,192.29",Clinical Waste collection and disposal from Huddersfield Royal Infirmary.,LS10  2LF
CHS Estates,L2 Estates,26/08/2022,Clinical Waste,Estates Operations,Srcl Ltd,0001735960,"11,921.65",Clinical Waste collection and disposal from Calderdale Royal Hospital,LS10  2LF
Community Division,Community Therapies,12/08/2022,Patients Appliances : Purchase,Patient Appliances,Taycare Medical Ltd,21364,"42,889.75 ",supply of specialist orthotic products,LS12 6LL
Community Division,Community Therapies,26/08/2022,Patients Appliances : Purchase,Patient Appliances,Taycare Medical Ltd,21418,"31,548.20 ",supply of specialist orthotic products,LS12 6LL
Community Division,Community Therapies,12/08/2022,Patients Appliances : Purchase,Patient Appliances,Taycare Medical Ltd,21419,"33,219.87 ",supply of specialist orthotic products,LS12 6LL
Families & Specialist Services,Radiology,17/08/2022,Contractual Clinical Services,Rad General,Telemedicine Clinic Ltd,20220266,"97,176.33 ",Outsourcing of teleradiology reporting for CHFT. ,B3 2RT
Families & Specialist Services,Radiology,26/08/2022,Contractual Clinical Services,Rad General,Telemedicine Clinic Ltd,20220318,"114,575.45 ",Outsourcing of teleradiology reporting for CHFT. ,B3 2RT
Recharges,Recharges,17/08/2022,Healthcare From NHS Trusts,Recharges,The Leeds Teaching Hospitals NHS Trust,1410192941,"244,184.58 ",Various services provided by agreement as per West Yorkshire Association of Acute Trusts agreed methodology,LS9 7TF
Recharges,Recharges,17/08/2022,Healthcare From NHS Trusts,Recharges,The Leeds Teaching Hospitals NHS Trust,1410192993,"244,184.58 ",Various services provided by agreement as per West Yorkshire Association of Acute Trusts agreed methodology,LS9 7TF
Recharges,Recharges,17/08/2022,Healthcare From NHS Trusts,Recharges,The Leeds Teaching Hospitals NHS Trust,1410193005,"244,381.22 ",Various services provided by agreement as per West Yorkshire Association of Acute Trusts agreed methodology,LS9 7TF
Recharges,Recharges,17/08/2022,Healthcare From NHS Trusts,Recharges,The Leeds Teaching Hospitals NHS Trust,1410193017,"244,184.58 ",Various services provided by agreement as per West Yorkshire Association of Acute Trusts agreed methodology,LS9 7TF
CHS Facilities,L2 Facilities,24/08/2022,Contract : Premises Security,Security,The Leeds Teaching Hospitals NHS Trust,1410190599,"36,161.22 ",Security Contract ,LS9 7TF
CHS Facilities,L2 Facilities,24/08/2022,Contract : Premises Security,Security,The Leeds Teaching Hospitals NHS Trust,1410193580,"36,161.22 ",Security Contract ,LS9 7TF
Balance Sheet,Fixed Assets,26/08/2022,Additions - Assets Under Construction,Capital (Estates),The Together Group Construction Ltd,2868,"196,396.76 ",CHILD DEVELOPMENT UNIT - REFURBISHMENT OF THE CLOCK HOUSE TO CREATE A CHILD DEVELOPMENT UNIT - AS PER CONTRACT ,LS22 5DZ
Balance Sheet,L2 Current Assets,26/08/2022,Other Debtors < One Year,Other Debtors,Tuskerdirect Ltd,63606,"117,004.64 ",Salary Sacrifice cars,WD18 8YF
Health Informatics,Corporate And Operations,01/08/2022,Data Lines,It Support,Virgin Media Business Ltd,444221-007,"27,307.02 ",VMB Account 444221 Install - IPVPN (Net - Rental-High Capacity Services (Net) - Rental - IPVPN (Net).  For 24 May 2022 ,BD4 8PW
Medical Division,Emergency Medicine,19/08/2022,B5 Agency Nursing,A&E Nursing,Your Nurse Ltd,YNLX33,"21,059.45 ",B5 Agency Nursing,EC3V 0EH
Medical Division,Medical Specialities,19/08/2022,B5 Agency Nursing,Cardiology,Your Nurse Ltd,YNLX33,"2,367.62 ",B5 Agency Nursing,EC3V 0EH
Corporate Services,Central Operations Team CORP,19/08/2022,B5 Agency Nursing,Central Operations Team CORP,Your Nurse Ltd,YNLX33,"1,255.95 ",B5 Agency Nursing,EC3V 0EH
Surgery & Anaesthetics,Head & Neck,19/08/2022,B5 Agency Nursing,Ent,Your Nurse Ltd,YNLX33,"1,894.27 ",B5 Agency Nursing,EC3V 0EH
Medical Division,Medical Specialities,19/08/2022,B5 Agency Nursing,Gastroenterology,Your Nurse Ltd,YNLX33,"8,196.86 ",B5 Agency Nursing,EC3V 0EH
Medical Division,Acute Medical,19/08/2022,B5 Agency Nursing,General Medicine,Your Nurse Ltd,YNLX33,"7,287.98 ",B5 Agency Nursing,EC3V 0EH
Surgery & Anaesthetics,General Surgery,19/08/2022,B5 Agency Nursing,General Surgery,Your Nurse Ltd,YNLX33,"4,501.78 ",B5 Agency Nursing,EC3V 0EH
Medical Division,Acute Medical,19/08/2022,B5 Agency Nursing,Geriatric Medicine,Your Nurse Ltd,YNLX33,"9,238.44 ",B5 Agency Nursing,EC3V 0EH
Families & Specialist Services,Womens,19/08/2022,B5 Agency Nursing,Gynaecology,Your Nurse Ltd,YNLX33,"1,356.26 ",B5 Agency Nursing,EC3V 0EH
Medical Division,Integrated Medical Specialities,19/08/2022,B5 Agency Nursing,Ims Stroke / Rehabilitation,Your Nurse Ltd,YNLX33,"1,793.25 ",B5 Agency Nursing,EC3V 0EH
Medical Division,Integrated Medical Specialities,19/08/2022,B5 Agency Nursing,Medical Oncology,Your Nurse Ltd,YNLX33,578.76 ,B5 Agency Nursing,EC3V 0EH
Surgery & Anaesthetics,Operating Services,19/08/2022,B5 Agency Nursing,Operating Services,Your Nurse Ltd,YNLX33,"7,063.69 ",B5 Agency Nursing,EC3V 0EH
Medical Division,Medical Specialities,19/08/2022,B5 Agency Nursing,Respiratory,Your Nurse Ltd,YNLX33,"4,417.32 ",B5 Agency Nursing,EC3V 0EH
Surgery & Anaesthetics,Orthopaedics,19/08/2022,B5 Agency Nursing,Trauma & Orthopaedics,Your Nurse Ltd,YNLX33,"3,010.45 ",B5 Agency Nursing,EC3V 0EH
Medical Division,Emergency Medicine,12/08/2022,B5 Agency Nursing,A&E Nursing,Your Nurse Ltd,YNLX34,16971.61,B5 Agency Nursing,EC3V 0EH
Medical Division,Medical Specialities,12/08/2022,B5 Agency Nursing,Cardiology,Your Nurse Ltd,YNLX34,2924.42,B5 Agency Nursing,EC3V 0EH
Corporate Services,Central Operations Team CORP,12/08/2022,B5 Agency Nursing,Central Operations Team CORP,Your Nurse Ltd,YNLX34,3157.42,B5 Agency Nursing,EC3V 0EH
Surgery & Anaesthetics,Head & Neck,12/08/2022,B5 Agency Nursing,Ent,Your Nurse Ltd,YNLX34,609.04,B5 Agency Nursing,EC3V 0EH
Medical Division,Medical Specialities,12/08/2022,B5 Agency Nursing,Gastroenterology,Your Nurse Ltd,YNLX34,5514.95,B5 Agency Nursing,EC3V 0EH
Medical Division,Acute Medical,12/08/2022,B5 Agency Nursing,General Medicine,Your Nurse Ltd,YNLX34,11764.11,B5 Agency Nursing,EC3V 0EH
Surgery & Anaesthetics,General Surgery,12/08/2022,B5 Agency Nursing,General Surgery,Your Nurse Ltd,YNLX34,6620,B5 Agency Nursing,EC3V 0EH
Medical Division,Acute Medical,12/08/2022,B5 Agency Nursing,Geriatric Medicine,Your Nurse Ltd,YNLX34,11648.69,B5 Agency Nursing,EC3V 0EH
Families & Specialist Services,Womens,12/08/2022,B5 Agency Nursing,Gynaecology,Your Nurse Ltd,YNLX34,3544.96,B5 Agency Nursing,EC3V 0EH
Medical Division,Integrated Medical Specialities,12/08/2022,B5 Agency Nursing,Ims Stroke / Rehabilitation,Your Nurse Ltd,YNLX34,1733.06,B5 Agency Nursing,EC3V 0EH
Families & Specialist Services,Childrens,12/08/2022,B5 Agency Nursing,Inpatients Paediatrics,Your Nurse Ltd,YNLX34,706.19,B5 Agency Nursing,EC3V 0EH
Medical Division,Integrated Medical Specialities,12/08/2022,B5 Agency Nursing,Medical Oncology,Your Nurse Ltd,YNLX34,2317.99,B5 Agency Nursing,EC3V 0EH
Surgery & Anaesthetics,Operating Services,12/08/2022,B5 Agency Nursing,Operating Services,Your Nurse Ltd,YNLX34,3639.76,B5 Agency Nursing,EC3V 0EH
Medical Division,Medical Specialities,12/08/2022,B5 Agency Nursing,Respiratory,Your Nurse Ltd,YNLX34,4684.01,B5 Agency Nursing,EC3V 0EH
Surgery & Anaesthetics,Orthopaedics,12/08/2022,B5 Agency Nursing,Trauma & Orthopaedics,Your Nurse Ltd,YNLX34,1515.76,B5 Agency Nursing,EC3V 0EH
Medical Division,Emergency Medicine,19/08/2022,B5 Agency Nursing,A&E Nursing,Your Nurse Ltd,YNLX35,22232.1,B5 Agency Nursing,EC3V 0EH
Medical Division,Medical Specialities,19/08/2022,B5 Agency Nursing,Cardiology,Your Nurse Ltd,YNLX35,2282.33,B5 Agency Nursing,EC3V 0EH
Corporate Services,Central Operations Team CORP,19/08/2022,B5 Agency Nursing,Central Operations Team CORP,Your Nurse Ltd,YNLX35,6162.54,B5 Agency Nursing,EC3V 0EH
Surgery & Anaesthetics,Critical Care,19/08/2022,B5 Agency Nursing,Critical Care,Your Nurse Ltd,YNLX35,2171.24,B5 Agency Nursing,EC3V 0EH
Surgery & Anaesthetics,Head & Neck,19/08/2022,B5 Agency Nursing,Ent,Your Nurse Ltd,YNLX35,655.1,B5 Agency Nursing,EC3V 0EH
Medical Division,Medical Specialities,19/08/2022,B5 Agency Nursing,Gastroenterology,Your Nurse Ltd,YNLX35,5296.94,B5 Agency Nursing,EC3V 0EH
Medical Division,Acute Medical,19/08/2022,B5 Agency Nursing,General Medicine,Your Nurse Ltd,YNLX35,9766.56,B5 Agency Nursing,EC3V 0EH
Surgery & Anaesthetics,General Surgery,19/08/2022,B5 Agency Nursing,General Surgery,Your Nurse Ltd,YNLX35,3150.64,B5 Agency Nursing,EC3V 0EH
Medical Division,Acute Medical,19/08/2022,B5 Agency Nursing,Geriatric Medicine,Your Nurse Ltd,YNLX35,10881.12,B5 Agency Nursing,EC3V 0EH
Medical Division,Integrated Medical Specialities,19/08/2022,B5 Agency Nursing,Ims Stroke / Rehabilitation,Your Nurse Ltd,YNLX35,3696.82,B5 Agency Nursing,EC3V 0EH
Medical Division,Integrated Medical Specialities,19/08/2022,B5 Agency Nursing,Medical Oncology,Your Nurse Ltd,YNLX35,2452.68,B5 Agency Nursing,EC3V 0EH
Surgery & Anaesthetics,Operating Services,19/08/2022,B5 Agency Nursing,Operating Services,Your Nurse Ltd,YNLX35,4486.21,B5 Agency Nursing,EC3V 0EH
Medical Division,Medical Specialities,19/08/2022,B5 Agency Nursing,Respiratory,Your Nurse Ltd,YNLX35,4691.77,B5 Agency Nursing,EC3V 0EH
Surgery & Anaesthetics,Orthopaedics,19/08/2022,B5 Agency Nursing,Trauma & Orthopaedics,Your Nurse Ltd,YNLX35,1341.65,B5 Agency Nursing,EC3V 0EH
